[Event "14th Margaryan Memorial-IM 2024"]
[Site "Yerevan"]
[Date "2024.01.09"]
[Round "2.9"]
[White "Pashikyan, Rudolf"]
[Black "Sagradov Sahakyan, Alexander"]
[Result "1-0"]
[ECO "B40"]
[WhiteElo "2287"]
[BlackElo "1423"]
[Annotator "RC"]
[PlyCount "77"]
[EventDate "2024.01.08"]
[EventType "tourn"]
[EventCountry "ARM"]
[SourceTitle "playchess.com"]
[Source "ChessBase"]
[SourceQuality "1"]
[TimeControl "40/5400+30:1800+30"]

1. e4 {[%emt 0:00:04]} c5 {[%emt 0:00:05]} 2. Nf3 {[%emt 0:00:06]} e6 {[%emt 0:00:05]} 3. b3 {[%emt 0:00:06]} Nc6 {[%emt 0:00:06]} 4. Bb2 {[%emt 0:00:06]} a6 {[%emt 0:00:04]} 5. c4 {[%emt 0:00:06]} Nf6 {[%emt 0:00:04]} 6. e5 {[%emt 0:00:06]} Ng4 {[%emt 0:00:04]} 7. h3 {[%emt 0:00:06]} Nh6 {[%emt 0:00:05]} 8. Nc3 {[%emt 0:00:04]} Nf5 {[%emt 0:00:04]} 9. Bd3 {[%emt 0:00:33]} Nfd4 {[%emt 0:00:51]} 10. Ne4 {[%emt 0:02:50]} Nxf3+ {[%emt 0:00:39]} 11. Qxf3 {[%emt 0:00:14]} d5 {[%emt 0:00:08]} 12. exd6 {[%emt 0:01:25]} f5 {[%emt 0:00:38]} 13. Ng3 {[%emt 0:06:56]} Qxd6 {[%emt 0:02:07]} 14. O-O {[%emt 0:02:52]} Bd7 {[%emt 0:02:12]} 15. a3 {[%emt 0:30:25]} O-O-O {[%emt 0:10:36]} 16. b4 {[%emt 0:02:26]} cxb4 {[%emt 0:08:08]} 17. c5 {[%emt 0:04:52]} Qc7 {[%emt 0:13:44]} 18. Rfc1 {[%emt 0:05:00]} Be7 {[%emt 0:19:59]} 19. axb4 {[%emt 0:03:09]} Nxb4 {[%emt 0:00:24]} 20. Bc4 {[%emt 0:00:04]} Qc6 {[%emt 0:05:41]} 21. Qb3 {[%emt 0:00:30]} Nd5 {[%emt 0:16:26]} 22. Nxf5 {[%emt 0:00:53]} exf5 {[%emt 0:00:25]} 23. Bxd5 {[%emt 0:00:13]} Qb5 {[%emt 0:00:00]} 24. Qc2 {[%emt 0:07:01]} Bc6 {[%emt 0:07:18]} 25. Qxf5+ {[%emt 0:00:59]} Rd7 {[%emt 0:00:24]} 26. Bxg7 {[%emt 0:00:52]} Bxd5 {[%emt 0:00:36]} 27. c6 {[%emt 0:03:06]} Bxc6 {[%emt 0:01:11]} 28. Qxb5 {[%emt 0:01:09]} axb5 {[%emt 0:00:01]} 29. Ra8+ {[%emt 0:02:45]} Kc7 {[%emt 0:00:01]} 30. Be5+ {[%emt 0:00:07]} Kb6 {[%emt 0:00:09]} 31. Rxh8 {[%emt 0:00:06]} Bg5 {[%emt 0:03:17]} 32. f4 {[%emt 0:12:54]} Bh4 {[%emt 0:01:11]} 33. Bc3 {[%emt 0:00:03]} Be4 {[%emt 0:04:05]} 34. Ra8 {[%emt 0:00:33]} b4 {[%emt 0:00:56]} 35. Bxb4 {[%emt 0:00:05]} h5 {[%emt 0:01:03]} 36. Rh8 {[%emt 0:03:52]} Rd5 {[%emt 0:02:22]} 37. Rh6+ {[%emt 0:00:08]} Kb5 {[%emt 0:00:08]} 38. Rc5+ {[%emt 0:00:08]} Rxc5 {[%emt 0:02:25]} 39. Bxc5 {[%emt 0:00:02]} 1-0

[Event "14th Margaryan Memorial-IM 2024"]
[Site "Yerevan"]
[Date "2024.01.09"]
[Round "2.10"]
[White "Lomsadze, Davit"]
[Black "Kaiyrbekov, Rustam"]
[Result "1/2-1/2"]
[ECO "A30"]
[WhiteElo "2253"]
[BlackElo "2295"]
[Annotator "RC"]
[PlyCount "95"]
[EventDate "2024.01.08"]
[EventType "tourn"]
[EventCountry "ARM"]
[SourceTitle "playchess.com"]
[Source "ChessBase"]
[SourceQuality "1"]
[TimeControl "40/5400+30:1800+30"]

1. Nf3 {[%emt 0:01:02]} c5 {[%emt 0:00:06]} 2. g3 {[%emt 0:00:09]} b6 {[%emt 0:00:04]} 3. Bg2 {[%emt 0:00:05]} Bb7 {[%emt 0:00:09]} 4. c4 {[%emt 0:00:05]} Nf6 {[%emt 0:00:06]} 5. O-O {[%emt 0:00:06]} e6 {[%emt 0:00:34]} 6. b3 {[%emt 0:00:08]} Be7 {[%emt 0:00:08]} 7. Bb2 {[%emt 0:00:05]} d6 {[%emt 0:00:11]} 8. d4 {[%emt 0:00:20]} cxd4 {[%emt 0:00:22]} 9. Nxd4 {[%emt 0:00:13]} Bxg2 {[%emt 0:00:17]} 10. Kxg2 {[%emt 0:00:02]} Qc7 {[%emt 0:02:15]} 11. e3 {[%emt 0:00:16]} Nbd7 {[%emt 0:05:43]} 12. Nc3 {[%emt 0:03:03]} a6 {[%emt 0:00:31]} 13. f4 {[%emt 0:01:01]} O-O {[%emt 0:00:13]} 14. Qf3 {[%emt 0:02:00]} Rac8 {[%emt 0:00:58]} 15. Rac1 {[%emt 0:00:27]} Rfe8 {[%emt 0:00:53]} 16. g4 {[%emt 0:05:04]} g6 {[%emt 0:02:06]} 17. g5 {[%emt 0:05:54]} Nh5 {[%emt 0:00:30]} 18. Ne4 {[%emt 0:03:54]} Nc5 {[%emt 0:07:05]} 19. Nf2 {[%emt 0:08:44]} Bf8 {[%emt 0:10:32]} 20. Ne2 {[%emt 0:03:55]} Qb7 {[%emt 0:03:33]} 21. Qxb7 {[%emt 0:07:26]} Nxb7 {[%emt 0:05:17]} 22. Ng3 {[%emt 0:00:08]} Bg7 {[%emt 0:05:07]} 23. Bxg7 {[%emt 0:00:35]} Nxg7 {[%emt 0:11:03]} 24. Ng4 {[%emt 0:01:44]} Red8 {[%emt 0:00:36]} 25. Nf6+ {[%emt 0:00:42]} Kh8 {[%emt 0:00:27]} 26. b4 {[%emt 0:01:40]} Ne8 {[%emt 0:05:01]} 27. Nxe8 {[%emt 0:00:59]} Rxe8 {[%emt 0:00:03]} 28. Ne4 {[%emt 0:00:06]} Kg7 {[%emt 0:02:00]} 29. Rfd1 {[%emt 0:02:29]} Red8 {[%emt 0:00:37]} 30. Kf3 {[%emt 0:00:09]} h5 {[%emt 0:02:04]} 31. gxh6+ {[%emt 0:09:05]} Kxh6 {[%emt 0:00:13]} 32. h4 {[%emt 0:00:04]} Kg7 {[%emt 0:01:05]} 33. h5 {[%emt 0:00:20]} gxh5 {[%emt 0:00:33]} 34. f5 {[%emt 0:02:52]} Kf8 {[%emt 0:11:23]} 35. fxe6 {[%emt 0:02:44]} fxe6 {[%emt 0:00:16]} 36. Rh1 {[%emt 0:00:10]} Ke7 {[%emt 0:02:22]} 37. Rxh5 {[%emt 0:00:40]} Rf8+ {[%emt 0:00:31]} 38. Ke2 {[%emt 0:00:13]} d5 {[%emt 0:11:31]} 39. Ng5 {[%emt 0:04:35]} Nd6 {[%emt 0:11:28]} 40. c5 {[%emt 0:00:00]} bxc5 {[%emt 0:00:00]} 41. Rxc5 {[%emt 0:20:01]} Rxc5 {[%emt 0:18:47]} 42. bxc5 {[%emt 0:01:38]} Nf5 {[%emt 0:01:03]} 43. Kd3 {[%emt 0:01:01]} Rc8 {[%emt 0:01:16]} 44. e4 {[%emt 0:03:01]} Ng3 {[%emt 0:01:34]} 45. Rh3 {[%emt 0:01:15]} Nxe4 {[%emt 0:01:55]} 46. Nxe4 {[%emt 0:00:55]} dxe4+ {[%emt 0:00:05]} 47. Kd4 {[%emt 0:00:18]} Rd8+ {[%emt 0:03:24]} 48. Kxe4 {[%emt 0:43:07]} 1/2-1/2

[Event "14th Margaryan Memorial-IM 2024"]
[Site "Yerevan"]
[Date "2024.01.10"]
[Round "3.6"]
[White "Kaiyrbekov, Rustam"]
[Black "Zakaryan, David"]
[Result "0-1"]
[ECO "A48"]
[WhiteElo "2295"]
[BlackElo "2299"]
[Annotator "RC"]
[PlyCount "88"]
[EventDate "2024.01.08"]
[EventType "tourn"]
[EventCountry "ARM"]
[SourceTitle "playchess.com"]
[Source "ChessBase"]
[SourceQuality "1"]
[TimeControl "40/5400+30:1800+30"]

1. d4 {[%emt 0:00:38]} Nf6 {[%emt 0:00:06]} 2. Nf3 {[%emt 0:00:05]} g6 {[%emt 0:00:06]} 3. Bg5 {[%emt 0:00:07]} Bg7 {[%emt 0:00:05]} 4. Nbd2 {[%emt 0:00:06]} O-O {[%emt 0:00:06]} 5. c3 {[%emt 0:01:39]} h6 {[%emt 0:00:41]} 6. Bh4 {[%emt 0:00:10]} d6 {[%emt 0:00:02]} 7. e4 {[%emt 0:00:59]} c5 {[%emt 0:00:20]} 8. Be2 {[%emt 0:02:21]} cxd4 {[%emt 0:01:12]} 9. cxd4 {[%emt 0:00:31]} Nh5 {[%emt 0:04:10]} 10. Nb3 {[%emt 0:04:54]} a5 {[%emt 0:00:51]} 11. a4 {[%emt 0:02:05]} Qb6 {[%emt 0:01:04]} 12. O-O {[%emt 0:01:13]} g5 {[%emt 0:01:13]} 13. Bg3 {[%emt 0:00:20]} Nxg3 {[%emt 0:02:26]} 14. hxg3 {[%emt 0:00:29]} Bg4 {[%emt 0:00:19]} 15. Qd3 {[%emt 0:12:48]} Nc6 {[%emt 0:02:13]} 16. Rfd1 {[%emt 0:00:18]} Nb4 {[%emt 0:03:47]} 17. Qb5 {[%emt 0:06:15]} Qa7 {[%emt 0:03:43]} 18. Rac1 {[%emt 0:02:56]} b6 {[%emt 0:00:25]} 19. Bf1 {[%emt 0:08:44]} Bd7 {[%emt 0:00:48]} 20. Qe2 {[%emt 0:00:08]} Bxa4 {[%emt 0:00:12]} 21. Qe3 {[%emt 0:01:10]} Rac8 {[%emt 0:00:18]} 22. e5 {[%emt 0:07:07]} Qd7 {[%emt 0:01:19]} 23. Nfd2 {[%emt 0:07:57]} Qe6 {[%emt 0:05:23]} 24. Bc4 {[%emt 0:05:31]} Qg6 {[%emt 0:00:50]} 25. f4 {[%emt 0:02:41]} Bd7 {[%emt 0:05:14]} 26. Nf3 {[%emt 0:03:04]} b5 {[%emt 0:03:52]} 27. Be2 {[%emt 0:01:13]} Nd5 {[%emt 0:02:08]} 28. Qd2 {[%emt 0:02:42]} gxf4 {[%emt 0:00:25]} 29. gxf4 {[%emt 0:01:01]} a4 {[%emt 0:01:57]} 30. Na5 {[%emt 0:06:18]} Qg3 {[%emt 0:00:07]} 31. f5 {[%emt 0:02:06]} Nf4 {[%emt 0:02:20]} 32. Bd3 {[%emt 0:01:23]} Rxc1 {[%emt 0:00:48]} 33. Rxc1 {[%emt 0:00:22]} Nxd3 {[%emt 0:00:21]} 34. Qxd3 {[%emt 0:00:31]} Qf4 {[%emt 0:00:05]} 35. Rc7 {[%emt 0:02:00]} Bxf5 {[%emt 0:00:01]} 36. Qxb5 {[%emt 0:01:02]} Be4 {[%emt 0:02:14]} 37. Qxa4 {[%emt 0:02:43]} Bxf3 {[%emt 0:00:20]} 38. gxf3 {[%emt 0:00:25]} Qg3+ {[%emt 0:00:02]} 39. Kf1 {[%emt 0:00:24]} Qxf3+ {[%emt 0:00:05]} 40. Ke1 {[%emt 0:00:00]} Ra8 {[%emt 0:00:00]} 41. Qb4 {[%emt 0:24:19]} dxe5 {[%emt 0:18:42]} 42. dxe5 {[%emt 0:00:18]} Bxe5 {[%emt 0:00:28]} 43. Rxe7 {[%emt 0:00:47]} Bg3+ {[%emt 0:00:17]} 44. Kd2 {[%emt 0:00:06]} Rd8+ {[%emt 0:00:05]} 0-1

[Event "14th Margaryan Memorial-IM 2024"]
[Site "Yerevan"]
[Date "2024.01.10"]
[Round "3.7"]
[White "Sagradov Sahakyan, Alexander"]
[Black "Lomsadze, Davit"]
[Result "1-0"]
[ECO "C54"]
[WhiteElo "1423"]
[BlackElo "2253"]
[Annotator "RC"]
[PlyCount "71"]
[EventDate "2024.01.08"]
[EventType "tourn"]
[EventCountry "ARM"]
[SourceTitle "playchess.com"]
[Source "ChessBase"]
[SourceQuality "1"]
[TimeControl "40/5400+30:1800+30"]

1. e4 {[%emt 0:00:03]} e5 {[%emt 0:00:04]} 2. Nf3 {[%emt 0:00:06]} Nc6 {[%emt 0:00:04]} 3. Bc4 {[%emt 0:00:09]} Bc5 {[%emt 0:00:26]} 4. c3 {[%emt 0:01:10]} Nf6 {[%emt 0:00:02]} 5. d4 {[%emt 0:00:15]} exd4 {[%emt 0:00:09]} 6. e5 {[%emt 0:00:09]} d5 {[%emt 0:00:06]} 7. Bb5 {[%emt 0:00:29]} Ne4 {[%emt 0:00:02]} 8. cxd4 {[%emt 0:00:05]} Bb4+ {[%emt 0:00:48]} 9. Nbd2 {[%emt 0:00:39]} O-O {[%emt 0:02:00]} 10. a3 {[%emt 0:10:04]} Bxd2+ {[%emt 0:04:20]} 11. Bxd2 {[%emt 0:01:56]} Bg4 {[%emt 0:00:38]} 12. Be3 {[%emt 0:02:12]} f5 {[%emt 0:05:57]} 13. exf6 {[%emt 0:01:59]} Qxf6 {[%emt 0:01:47]} 14. Be2 {[%emt 0:00:09]} Kh8 {[%emt 0:04:25]} 15. O-O {[%emt 0:02:48]} Rae8 {[%emt 0:07:58]} 16. Rc1 {[%emt 0:03:14]} Nd6 {[%emt 0:04:35]} 17. Rc5 {[%emt 0:19:53]} Be6 {[%emt 0:03:00]} 18. b4 {[%emt 0:03:36]} a6 {[%emt 0:03:22]} 19. a4 {[%emt 0:10:56]} Nxb4 {[%emt 0:05:08]} 20. Rxc7 {[%emt 0:02:39]} Nc6 {[%emt 0:01:40]} 21. Bg5 {[%emt 0:01:53]} Qg6 {[%emt 0:00:37]} 22. Bh4 {[%emt 0:01:54]} Bg4 {[%emt 0:05:43]} 23. Bg3 {[%emt 0:03:00]} Rxe2 {[%emt 0:10:57]} 24. Qxe2 {[%emt 0:01:26]} Bxf3 {[%emt 0:04:50]} 25. gxf3 {[%emt 0:02:01]} Nf5 {[%emt 0:01:55]} 26. Kh1 {[%emt 0:03:45]} Ncxd4 {[%emt 0:05:39]} 27. Qd1 {[%emt 0:06:00]} Qh5 {[%emt 0:02:04]} 28. Be5 {[%emt 0:02:44]} Nxf3 {[%emt 0:07:15]} 29. Rg1 {[%emt 0:01:06]} d4 {[%emt 0:05:59]} 30. Rcxg7 {[%emt 0:02:48]} Nxg7 {[%emt 0:00:18]} 31. Bxg7+ {[%emt 0:00:23]} Kg8 {[%emt 0:00:02]} 32. Bxd4+ {[%emt 0:01:02]} Kf7 {[%emt 0:00:26]} 33. Rg7+ {[%emt 0:01:08]} Ke6 {[%emt 0:00:06]} 34. Qb3+ {[%emt 0:00:14]} Kd6 {[%emt 0:01:32]} 35. Qb6+ {[%emt 0:00:10]} Kd5 {[%emt 0:00:01]} 36. Qc5+ {[%emt 0:00:11]} 1-0

[Event "14th Margaryan Memorial-IM 2024"]
[Site "Yerevan"]
[Date "2024.01.10"]
[Round "3.8"]
[White "Hayrapetyan, Edgar"]
[Black "Pashikyan, Rudolf"]
[Result "1-0"]
[ECO "D39"]
[WhiteElo "2233"]
[BlackElo "2287"]
[Annotator "RC"]
[PlyCount "102"]
[EventDate "2024.01.08"]
[EventType "tourn"]
[EventCountry "ARM"]
[SourceTitle "playchess.com"]
[Source "ChessBase"]
[SourceQuality "1"]
[TimeControl "40/5400+30:1800+30"]

1. d4 {[%emt 0:00:06]} Nf6 {[%emt 0:00:12]} 2. c4 {[%emt 0:00:03]} e6 {[%emt 0:00:06]} 3. Nf3 {[%emt 0:00:03]} d5 {[%emt 0:00:10]} 4. Nc3 {[%emt 0:00:07]} dxc4 {[%emt 0:00:05]} 5. e4 {[%emt 0:00:53]} Bb4 {[%emt 0:00:08]} 6. Bg5 {[%emt 0:00:08]} h6 {[%emt 0:02:20]} 7. Bxf6 {[%emt 0:01:00]} Qxf6 {[%emt 0:00:03]} 8. Bxc4 {[%emt 0:00:20]} c5 {[%emt 0:00:53]} 9. O-O {[%emt 0:00:29]} cxd4 {[%emt 0:00:13]} 10. Qa4+ {[%emt 0:16:22]} Nc6 {[%emt 0:00:15]} 11. Nd5 {[%emt 0:11:07]} exd5 {[%emt 0:01:03]} 12. exd5 {[%emt 0:00:02]} O-O {[%emt 0:05:09]} 13. dxc6 {[%emt 0:00:13]} Bc5 {[%emt 0:00:15]} 14. Rac1 {[%emt 0:05:37]} Qd6 {[%emt 0:10:18]} 15. Rfe1 {[%emt 0:24:40]} b6 {[%emt 1:16:50]} 16. Ne5 {[%emt 0:10:41]} Bf5 {[%emt 0:00:00]} 17. Qb3 {[%emt 0:03:29]} Qc7 {[%emt 0:00:00]} 18. Qf3 {[%emt 0:02:04]} Be6 {[%emt 0:00:00]} 19. Bxe6 {[%emt 0:02:12]} fxe6 {[%emt 0:00:00]} 20. Qg4 {[%emt 0:00:13]} Rae8 {[%emt 0:00:00]} 21. h4 {[%emt 0:02:42]} a5 {[%emt 0:00:00]} 22. a3 {[%emt 0:02:01]} Qd6 {[%emt 0:00:00]} 23. Rcd1 {[%emt 0:01:17]} Rf5 {[%emt 0:00:00]} 24. Qe4 {[%emt 0:00:17]} Ref8 {[%emt 0:00:00]} 25. Nd7 {[%emt 0:03:52]} d3 {[%emt 0:01:47]} 26. Qxe6+ {[%emt 0:02:59]} Qxe6 {[%emt 0:00:16]} 27. Rxe6 {[%emt 0:00:02]} Bxf2+ {[%emt 0:00:47]} 28. Kh2 {[%emt 0:00:11]} Rc8 {[%emt 0:00:02]} 29. Rxd3 {[%emt 0:00:24]} Kf7 {[%emt 0:00:10]} 30. Re2 {[%emt 0:00:16]} Bxh4 {[%emt 0:00:51]} 31. g4 {[%emt 0:05:02]} Rb5 {[%emt 0:00:02]} 32. Rc2 {[%emt 0:04:08]} Ke6 {[%emt 0:02:04]} 33. c7 {[%emt 0:01:34]} Ke7 {[%emt 0:01:56]} 34. b3 {[%emt 0:01:37]} Bf6 {[%emt 0:00:56]} 35. Re2+ {[%emt 0:01:09]} Kf7 {[%emt 0:00:02]} 36. Nxf6 {[%emt 0:00:19]} Kxf6 {[%emt 0:00:01]} 37. Rd6+ {[%emt 0:00:12]} Kg5 {[%emt 0:02:06]} 38. Re7 {[%emt 0:00:20]} Rc5 {[%emt 0:00:00]} 39. Rxg7+ {[%emt 0:00:08]} Kf4 {[%emt 0:00:00]} 40. Rf6+ {[%emt 0:00:00]} Ke5 {[%emt 0:00:00]} 41. Rxb6 {[%emt 0:22:21]} R8xc7 {[%emt 0:16:48]} 42. Rxc7 {[%emt 0:00:02]} Rxc7 {[%emt 0:00:08]} 43. Rb5+ {[%emt 0:02:42]} Kf4 {[%emt 0:00:32]} 44. Kh3 {[%emt 0:00:13]} Rc1 {[%emt 0:02:05]} 45. Rf5+ {[%emt 0:00:44]} Ke4 {[%emt 0:00:03]} 46. Rxa5 {[%emt 0:00:17]} Rc3+ {[%emt 0:00:05]} 47. Kh4 {[%emt 0:00:05]} Rxb3 {[%emt 0:00:11]} 48. Ra6 {[%emt 0:00:34]} Ke5 {[%emt 0:04:19]} 49. a4 {[%emt 0:01:00]} Ra3 {[%emt 0:00:01]} 50. a5 {[%emt 0:00:10]} Ra1 {[%emt 0:01:25]} 51. Rxh6 {[%emt 0:00:06]} Kd5 {[%emt 0:00:31]} 1-0

[Event "14th Margaryan Memorial-IM 2024"]
[Site "Yerevan"]
[Date "2024.01.10"]
[Round "3.9"]
[White "Gasparyan, Erik R."]
[Black "Putrenko, Kirill"]
[Result "1-0"]
[ECO "B72"]
[WhiteElo "2340"]
[BlackElo "2353"]
[Annotator "RC"]
[PlyCount "121"]
[EventDate "2024.01.08"]
[EventType "tourn"]
[EventCountry "ARM"]
[SourceTitle "playchess.com"]
[Source "ChessBase"]
[SourceQuality "1"]
[TimeControl "40/5400+30:1800+30"]

1. e4 {[%emt 0:01:32]} c5 {[%emt 0:00:08]} 2. Nf3 {[%emt 0:00:20]} d6 {[%emt 0:00:10]} 3. d4 {[%emt 0:00:11]} cxd4 {[%emt 0:00:06]} 4. Nxd4 {[%emt 0:00:04]} Nf6 {[%emt 0:00:09]} 5. Nc3 {[%emt 0:00:08]} a6 {[%emt 0:00:05]} 6. Bd3 {[%emt 0:00:30]} g6 {[%emt 0:04:23]} 7. Be3 {[%emt 0:00:12]} Bg7 {[%emt 0:01:09]} 8. f3 {[%emt 0:00:04]} Nbd7 {[%emt 0:06:37]} 9. Qd2 {[%emt 0:03:44]} b5 {[%emt 0:14:58]} 10. a4 {[%emt 0:28:42]} b4 {[%emt 0:25:12]} 11. Nce2 {[%emt 0:05:43]} d5 {[%emt 0:06:08]} 12. Qxb4 {[%emt 0:09:04]} Qc7 {[%emt 0:00:42]} 13. Qc3 {[%emt 0:10:56]} Qd6 {[%emt 0:04:31]} 14. Nb3 {[%emt 0:06:44]} O-O {[%emt 0:02:04]} 15. Bd4 {[%emt 0:01:58]} e5 {[%emt 0:01:49]} 16. Bc5 {[%emt 0:04:19]} Nxc5 {[%emt 0:00:24]} 17. Qxc5 {[%emt 0:00:02]} Qxc5 {[%emt 0:05:53]} 18. Nxc5 {[%emt 0:00:06]} dxe4 {[%emt 0:06:23]} 19. fxe4 {[%emt 0:00:37]} Bh6 {[%emt 0:00:14]} 20. Nc3 {[%emt 0:05:48]} Be3 {[%emt 0:01:59]} 21. Nb3 {[%emt 0:00:54]} a5 {[%emt 0:00:46]} 22. Ke2 {[%emt 0:02:38]} Bb6 {[%emt 0:03:29]} 23. Rhf1 {[%emt 0:00:48]} Nh5 {[%emt 0:00:41]} 24. Nd5 {[%emt 0:00:47]} Bd8 {[%emt 0:00:01]} 25. Nd2 {[%emt 0:03:09]} Be6 {[%emt 0:04:17]} 26. Nc4 {[%emt 0:01:47]} Bxd5 {[%emt 0:01:14]} 27. exd5 {[%emt 0:00:04]} Nf4+ {[%emt 0:00:06]} 28. Kf3 {[%emt 0:00:04]} Rc8 {[%emt 0:07:30]} 29. Nxe5 {[%emt 0:01:39]} Nxd5 {[%emt 0:00:41]} 30. c3 {[%emt 0:03:44]} Nb6 {[%emt 0:02:17]} 31. Bb5 {[%emt 0:00:07]} Bf6 {[%emt 0:00:48]} 32. Rae1 {[%emt 0:02:24]} Kg7 {[%emt 0:00:39]} 33. Re4 {[%emt 0:02:03]} Rc5 {[%emt 0:00:46]} 34. Nc6 {[%emt 0:00:27]} Rc8 {[%emt 0:00:28]} 35. Nd4 {[%emt 0:03:52]} Nc4 {[%emt 0:00:27]} 36. Bxc4 {[%emt 0:01:15]} Rxc4 {[%emt 0:00:02]} 37. Nb5 {[%emt 0:00:27]} Rxe4 {[%emt 0:00:27]} 38. Kxe4 {[%emt 0:00:01]} Rd8 {[%emt 0:01:09]} 39. Rf2 {[%emt 0:01:02]} Rd1 {[%emt 0:00:28]} 40. Rc2 {[%emt 0:00:00]} Be7 {[%emt 0:00:00]} 41. Nd4 {[%emt 0:15:40]} Bc5 {[%emt 0:24:13]} 42. Kd5 {[%emt 0:01:00]} Bb6 {[%emt 0:00:13]} 43. Kc4 {[%emt 0:00:19]} h5 {[%emt 0:00:31]} 44. Nc6 {[%emt 0:00:17]} Bc7 {[%emt 0:01:12]} 45. h3 {[%emt 0:01:42]} g5 {[%emt 0:01:06]} 46. b4 {[%emt 0:00:57]} Ra1 {[%emt 0:04:33]} 47. Kb5 {[%emt 0:00:14]} axb4 {[%emt 0:00:12]} 48. cxb4 {[%emt 0:00:04]} g4 {[%emt 0:00:29]} 49. a5 {[%emt 0:00:13]} Bh2 {[%emt 0:02:02]} 50. hxg4 {[%emt 0:03:41]} hxg4 {[%emt 0:00:07]} 51. Ka6 {[%emt 0:00:52]} f5 {[%emt 0:00:30]} 52. Kb7 {[%emt 0:01:11]} f4 {[%emt 0:01:18]} 53. a6 {[%emt 0:02:36]} Bg1 {[%emt 0:00:22]} 54. Rc4 {[%emt 0:00:07]} Rf1 {[%emt 0:00:47]} 55. Nd4 {[%emt 0:01:55]} Re1 {[%emt 0:00:33]} 56. a7 {[%emt 0:00:25]} Re7+ {[%emt 0:00:28]} 57. Rc7 {[%emt 0:00:19]} Rxc7+ {[%emt 0:00:07]} 58. Kxc7 {[%emt 0:00:04]} Bxd4 {[%emt 0:00:08]} 59. a8=Q {[%emt 0:00:06]} f3 {[%emt 0:00:13]} 60. gxf3 {[%emt 0:00:05]} g3 {[%emt 0:00:05]} 61. f4 {[%emt 0:00:04]} 1-0

[Event "14th Margaryan Memorial-IM 2024"]
[Site "Yerevan"]
[Date "2024.01.10"]
[Round "3.10"]
[White "Rostomyan, Mikayel"]
[Black "Ambartsumian, Tyhran"]
[Result "1-0"]
[ECO "E62"]
[WhiteElo "2294"]
[BlackElo "2224"]
[Annotator "RC"]
[PlyCount "85"]
[EventDate "2024.01.08"]
[EventType "tourn"]
[EventCountry "ARM"]
[SourceTitle "playchess.com"]
[Source "ChessBase"]
[SourceQuality "1"]
[TimeControl "40/5400+30:1800+30"]

1. d4 {[%emt 0:00:04]} Nf6 {[%emt 0:00:09]} 2. c4 {[%emt 0:00:17]} g6 {[%emt 0:00:06]} 3. Nf3 {[%emt 0:00:19]} Bg7 {[%emt 0:00:08]} 4. Nc3 {[%emt 0:00:09]} O-O {[%emt 0:00:12]} 5. g3 {[%emt 0:00:06]} d6 {[%emt 0:00:04]} 6. Bg2 {[%emt 0:00:05]} c6 {[%emt 0:00:04]} 7. O-O {[%emt 0:01:12]} Bf5 {[%emt 0:00:04]} 8. Nh4 {[%emt 0:02:35]} Be6 {[%emt 0:00:21]} 9. d5 {[%emt 0:01:36]} cxd5 {[%emt 0:00:07]} 10. cxd5 {[%emt 0:00:49]} Bd7 {[%emt 0:00:06]} 11. Be3 {[%emt 0:02:08]} Na6 {[%emt 0:04:46]} 12. Bd4 {[%emt 0:01:04]} Qa5 {[%emt 0:03:09]} 13. a3 {[%emt 0:02:21]} Rfc8 {[%emt 0:00:56]} 14. b4 {[%emt 0:01:47]} Qd8 {[%emt 0:01:25]} 15. Qd3 {[%emt 0:02:58]} Ng4 {[%emt 0:10:04]} 16. Bxg7 {[%emt 0:07:57]} Kxg7 {[%emt 0:00:15]} 17. Nf3 {[%emt 0:00:43]} Qb6 {[%emt 0:07:54]} 18. h3 {[%emt 0:00:52]} Nf6 {[%emt 0:03:18]} 19. Nd2 {[%emt 0:02:33]} Qd8 {[%emt 0:05:02]} 20. Rac1 {[%emt 0:07:05]} Rc7 {[%emt 0:08:55]} 21. e4 {[%emt 0:03:26]} Rac8 {[%emt 0:04:44]} 22. f4 {[%emt 0:11:09]} e5 {[%emt 0:01:10]} 23. Nb3 {[%emt 0:13:47]} Qe7 {[%emt 0:05:41]} 24. Ne2 {[%emt 0:02:46]} Ba4 {[%emt 0:08:37]} 25. Nd2 {[%emt 0:02:14]} Rxc1 {[%emt 0:01:34]} 26. Rxc1 {[%emt 0:00:26]} Rxc1+ {[%emt 0:00:18]} 27. Nxc1 {[%emt 0:00:01]} Qc7 {[%emt 0:00:18]} 28. Ncb3 {[%emt 0:03:15]} Qb6+ {[%emt 0:00:48]} 29. Kh2 {[%emt 0:00:44]} exf4 {[%emt 0:10:32]} 30. gxf4 {[%emt 0:00:30]} Bxb3 {[%emt 0:00:20]} 31. Nxb3 {[%emt 0:01:15]} Qf2 {[%emt 0:00:08]} 32. Qf3 {[%emt 0:01:27]} Qb2 {[%emt 0:01:11]} 33. Na5 {[%emt 0:02:05]} Nh5 {[%emt 0:02:04]} 34. Nc4 {[%emt 0:04:10]} Qc1 {[%emt 0:02:34]} 35. Nxd6 {[%emt 0:01:07]} Nxf4 {[%emt 0:01:03]} 36. Qf1 {[%emt 0:03:04]} Qd2 {[%emt 0:06:46]} 37. Nc4 {[%emt 0:01:15]} Qc3 {[%emt 0:01:00]} 38. Qxf4 {[%emt 0:00:38]} Qxc4 {[%emt 0:00:07]} 39. Qe5+ {[%emt 0:00:27]} Kf8 {[%emt 0:00:16]} 40. d6 {[%emt 0:00:00]} f6 {[%emt 0:00:00]} 41. Qe7+ {[%emt 0:15:44]} Kg8 {[%emt 0:19:23]} 42. d7 {[%emt 0:00:07]} Qc7+ {[%emt 0:00:10]} 43. e5 {[%emt 0:00:04]} 1-0